[Event "Mitropa Online Cup Women 2021"]
[Site "Hybrid"]
[Date "2021.05.04"]
[Round "7.2"]
[White "Guichard, Pauline"]
[Black "Janzelj, Lara"]
[Result "1/2-1/2"]
[ECO "D02"]
[WhiteElo "2415"]
[BlackElo "2212"]
[Annotator "RC"]
[PlyCount "210"]
[EventDate "2021.05.04"]
[EventType "team-tourn"]
[EventCountry "NET"]
[SourceTitle "playchess.com"]
[Source "ChessBase"]
[SourceQuality "1"]
[WhiteTeam "France"]
[BlackTeam "Slovenia"]
[WhiteTeamCountry "FRA"]
[BlackTeamCountry "SLO"]
[TimeControl "40/5400+30:1800+30"]

1. d4 {[%emt 0:00:00]} d5 {[%emt 0:00:15]} 2. Nf3 {[%emt 0:00:07]} Nf6 {[%emt 0:00:10]} 3. Bf4 {[%emt 0:00:06]} e6 {[%emt 0:00:20]} 4. Nbd2 {[%emt 0:00:17]} c5 {[%emt 0:00:16]} 5. e3 {[%emt 0:00:48]} Nc6 {[%emt 0:01:53]} 6. c3 {[%emt 0:00:34]} Bd6 {[%emt 0:00:13]} 7. Bg3 {[%emt 0:00:10]} O-O {[%emt 0:00:22]} 8. Bd3 {[%emt 0:00:16]} Qe7 {[%emt 0:00:23]} 9. Ne5 {[%emt 0:00:32]} Nd7 {[%emt 0:00:32]} 10. Nxd7 {[%emt 0:00:16]} Qxd7 {[%emt 0:00:11]} 11. dxc5 {[%emt 0:00:30]} Bxc5 {[%emt 0:00:08]} 12. O-O {[%emt 0:00:59]} Bd6 {[%emt 0:01:43]} 13. Qc2 {[%emt 0:02:00]} h6 {[%emt 0:04:20]} 14. e4 {[%emt 0:05:41]} Bxg3 {[%emt 0:04:11]} 15. hxg3 {[%emt 0:00:21]} d4 {[%emt 0:06:10]} 16. Nf3 {[%emt 0:05:32]} Qd6 {[%emt 0:17:19]} 17. Bb5 {[%emt 0:18:13]} dxc3 {[%emt 0:01:40]} 18. Qxc3 {[%emt 0:00:27]} Bd7 {[%emt 0:00:56]} 19. Rfd1 {[%emt 0:04:23]} Qe7 {[%emt 0:02:05]} 20. Rd3 {[%emt 0:02:50]} Rfd8 {[%emt 0:01:52]} 21. Rad1 {[%emt 0:03:42]} Be8 {[%emt 0:04:08]} 22. Bxc6 {[%emt 0:00:46]} Bxc6 {[%emt 0:00:38]} 23. Ne5 {[%emt 0:01:41]} Bb5 {[%emt 0:26:59]} 24. Rd4 {[%emt 0:01:22]} Rdc8 {[%emt 0:03:26]} 25. Qa5 {[%emt 0:09:29]} Be2 {[%emt 0:06:36]} 26. Re1 {[%emt 0:08:48]} Qg5 {[%emt 0:03:03]} 27. Nc6 {[%emt 0:16:00]} Qxa5 {[%emt 0:02:55]} 28. Nxa5 {[%emt 0:00:08]} Rc2 {[%emt 0:00:28]} 29. b4 {[%emt 0:02:08]} b6 {[%emt 0:01:02]} 30. Nb7 {[%emt 0:01:41]} Rb8 {[%emt 0:02:00]} 31. Nd8 {[%emt 0:01:35]} Bb5 {[%emt 0:01:47]} 32. a4 {[%emt 0:03:35]} Bxa4 {[%emt 0:02:24]} 33. Ra1 {[%emt 0:00:10]} Be8 {[%emt 0:00:50]} 34. Rxa7 {[%emt 0:06:50]} Rcc8 {[%emt 0:00:56]} 35. Nxf7 {[%emt 0:00:09]} Bxf7 {[%emt 0:00:58]} 36. Rdd7 {[%emt 0:00:17]} Rc1+ {[%emt 0:00:21]} 37. Kh2 {[%emt 0:00:11]} Rf8 {[%emt 0:00:06]} 38. Rdb7 {[%emt 0:04:55]} Rc4 {[%emt 0:01:08]} 39. Rxb6 {[%emt 0:00:25]} Rxe4 {[%emt 0:00:13]} 40. Rbb7 {[%emt 0:00:00]} Re5 {[%emt 0:00:00]} 41. b5 {[%emt 0:10:00]} Rf5 {[%emt 0:12:33]} 42. f3 {[%emt 0:18:37]} g6 {[%emt 0:05:54]} 43. g4 {[%emt 0:00:47]} Rc5 {[%emt 0:00:59]} 44. b6 {[%emt 0:03:01]} Rb5 {[%emt 0:00:11]} 45. Ra2 {[%emt 0:00:39]} Kg7 {[%emt 0:00:51]} 46. Rd2 {[%emt 0:00:43]} Kf6 {[%emt 0:01:08]} 47. Rd6 {[%emt 0:00:24]} Rc8 {[%emt 0:01:45]} 48. Rdd7 {[%emt 0:01:09]} Be8 {[%emt 0:00:47]} 49. Re7 {[%emt 0:00:06]} Rb2 {[%emt 0:02:04]} 50. Rbc7 {[%emt 0:00:17]} Rxb6 {[%emt 0:01:01]} 51. Rxe6+ {[%emt 0:00:18]} Rxe6 {[%emt 0:01:07]} 52. Rxc8 {[%emt 0:00:08]} g5 {[%emt 0:00:34]} 53. Kg3 {[%emt 0:00:11]} Bb5 {[%emt 0:00:38]} 54. Rc5 {[%emt 0:00:27]} Ba6 {[%emt 0:00:26]} 55. Rf5+ {[%emt 0:00:12]} Kg6 {[%emt 0:00:06]} 56. Ra5 {[%emt 0:00:08]} Rb6 {[%emt 0:00:46]} 57. Ra2 {[%emt 0:00:13]} Bd3 {[%emt 0:00:36]} 58. Ra3 {[%emt 0:00:18]} Bc4 {[%emt 0:00:18]} 59. Ra4 {[%emt 0:00:06]} Rc6 {[%emt 0:00:17]} 60. Rb4 {[%emt 0:00:49]} Kf6 {[%emt 0:00:21]} 61. Rb8 {[%emt 0:00:21]} Ke5 {[%emt 0:00:33]} 62. Re8+ {[%emt 0:00:34]} Re6 {[%emt 0:01:07]} 63. Rd8 {[%emt 0:00:11]} Bd5 {[%emt 0:00:34]} 64. Kf2 {[%emt 0:01:28]} Kd4 {[%emt 0:01:02]} 65. Rd7 {[%emt 0:00:27]} Ra6 {[%emt 0:01:27]} 66. Kg3 {[%emt 0:00:25]} Ke5 {[%emt 0:00:43]} 67. Rh7 {[%emt 0:00:28]} Rd6 {[%emt 0:00:13]} 68. Re7+ {[%emt 0:00:13]} Kd4 {[%emt 0:00:20]} 69. Kf2 {[%emt 0:00:14]} Bc4 {[%emt 0:00:30]} 70. Rh7 {[%emt 0:02:13]} Kd3 {[%emt 0:00:31]} 71. Rh8 {[%emt 0:00:14]} Kd2 {[%emt 0:00:13]} 72. Rc8 {[%emt 0:00:54]} Bd3 {[%emt 0:00:22]} 73. Re8 {[%emt 0:00:26]} Ra6 {[%emt 0:00:48]} 74. Re7 {[%emt 0:00:26]} Ra2 {[%emt 0:00:39]} 75. Re6 {[%emt 0:00:21]} Kd1+ {[%emt 0:00:41]} 76. Kg3 {[%emt 0:00:19]} Ra6 {[%emt 0:03:40]} 77. Re5 {[%emt 0:00:11]} Be2 {[%emt 0:00:22]} 78. Kf2 {[%emt 0:00:11]} Bc4 {[%emt 0:00:58]} 79. Re1+ {[%emt 0:00:46]} Kd2 {[%emt 0:00:12]} 80. Re4 {[%emt 0:00:20]} Ra2 {[%emt 0:00:49]} 81. Re7 {[%emt 0:00:53]} Kd1+ {[%emt 0:00:19]} 82. Kg1 {[%emt 0:00:11]} Re2 {[%emt 0:01:51]} 83. Rc7 {[%emt 0:00:16]} Ba2 {[%emt 0:00:48]} 84. Ra7 {[%emt 0:00:39]} Ke1 {[%emt 0:01:48]} 85. Ra6 {[%emt 0:00:27]} Be6 {[%emt 0:00:07]} 86. Rd6 {[%emt 0:01:09]} Re5 {[%emt 0:00:19]} 87. Ra6 {[%emt 0:00:15]} Ke2 {[%emt 0:00:27]} 88. Rb6 {[%emt 0:00:13]} Ke3 {[%emt 0:00:26]} 89. Rd6 {[%emt 0:00:12]} Ke2 {[%emt 0:01:07]} 90. Ra6 {[%emt 0:00:13]} Bc4 {[%emt 0:02:10]} 91. Rc6 {[%emt 0:00:49]} Bd5 {[%emt 0:01:34]} 92. Rxh6 {[%emt 0:00:12]} Bxf3 {[%emt 0:00:22]} 93. gxf3 {[%emt 0:00:13]} Kxf3 {[%emt 0:00:04]} 94. Rf6+ {[%emt 0:00:13]} Kg3 {[%emt 0:00:20]} 95. Rf1 {[%emt 0:00:11]} Kxg4 {[%emt 0:00:20]} 96. Ra1 {[%emt 0:00:16]} Re3 {[%emt 0:00:10]} 97. Kg2 {[%emt 0:00:10]} Re2+ {[%emt 0:00:07]} 98. Kf1 {[%emt 0:00:17]} Rb2 {[%emt 0:00:13]} 99. Kg1 {[%emt 0:00:11]} Kh4 {[%emt 0:00:16]} 100. Ra4+ {[%emt 0:00:18]} g4 {[%emt 0:00:07]} 101. Ra1 {[%emt 0:00:14]} Kh3 {[%emt 0:00:09]} 102. Ra3+ {[%emt 0:00:26]} g3 {[%emt 0:00:05]} 103. Ra1 {[%emt 0:00:14]} Rc2 {[%emt 0:00:27]} 104. Rb1 {[%emt 0:00:10]} Rc3 {[%emt 0:00:10]} 105. Ra1 {[%emt 0:00:15]} Rc2 {[%emt 0:00:17]} 1/2-1/2

[Event "Mitropa Online Cup Women 2021"]
[Site "Hybrid"]
[Date "2021.05.04"]
[Round "7.2"]
[White "Urh, Zala"]
[Black "Monpeurt, Cyrielle"]
[Result "1-0"]
[ECO "A61"]
[WhiteElo "2173"]
[BlackElo "2166"]
[Annotator "NA"]
[PlyCount "75"]
[EventDate "2021.05.04"]
[EventType "team-tourn"]
[EventCountry "NET"]
[SourceTitle "playchess.com"]
[Source "ChessBase"]
[SourceQuality "1"]
[WhiteTeam "Slovenia"]
[BlackTeam "France"]
[WhiteTeamCountry "SLO"]
[BlackTeamCountry "FRA"]
[TimeControl "40/5400+30:1800+30"]

1. d4 {[%emt 0:00:00]} Nf6 {[%emt 0:00:23]} 2. c4 {[%emt 0:00:09]} c5 {[%emt 0:00:10]} 3. d5 {[%emt 0:00:10]} e6 {[%emt 0:00:09]} 4. Nc3 {[%emt 0:00:10]} exd5 {[%emt 0:00:10]} 5. cxd5 {[%emt 0:00:08]} d6 {[%emt 0:00:10]} 6. Nf3 {[%emt 0:00:13]} g6 {[%emt 0:00:28]} 7. Bf4 {[%emt 0:00:09]} a6 {[%emt 0:00:21]} 8. a4 {[%emt 0:00:11]} Qe7 {[%emt 0:00:15]} 9. h3 {[%emt 0:01:09]} Nbd7 {[%emt 0:00:12]} 10. Nd2 {[%emt 0:00:50]} Ne5 {[%emt 0:02:07]} 11. e3 {[%emt 0:02:14]} Bg7 {[%emt 0:00:17]} 12. Be2 {[%emt 0:00:15]} O-O {[%emt 0:00:23]} 13. O-O {[%emt 0:00:13]} Rb8 {[%emt 0:00:23]} 14. Bg3 {[%emt 0:02:01]} Ne8 {[%emt 0:01:32]} 15. Re1 {[%emt 0:04:08]} f5 {[%emt 0:01:03]} 16. a5 {[%emt 0:05:22]} g5 {[%emt 0:10:09]} 17. f4 {[%emt 0:03:20]} Ng6 {[%emt 0:00:49]} 18. Nc4 {[%emt 0:07:02]} gxf4 {[%emt 0:19:13]} 19. exf4 {[%emt 0:02:26]} Bd4+ {[%emt 0:00:14]} 20. Kh1 {[%emt 0:02:47]} Qg7 {[%emt 0:01:59]} 21. Qd3 {[%emt 0:04:30]} Kh8 {[%emt 0:09:14]} 22. Bf1 {[%emt 0:05:17]} Bd7 {[%emt 0:06:11]} 23. Qf3 {[%emt 0:07:50]} Rd8 {[%emt 0:06:00]} 24. Ra3 {[%emt 0:19:45]} Bb5 {[%emt 0:05:42]} 25. Rb3 {[%emt 0:02:54]} Bxc4 {[%emt 0:07:42]} 26. Bxc4 {[%emt 0:00:16]} Rd7 {[%emt 0:02:22]} 27. Re6 {[%emt 0:09:21]} Nf6 {[%emt 0:09:56]} 28. Bd3 {[%emt 0:02:02]} Ne7 {[%emt 0:01:19]} 29. Bh4 {[%emt 0:06:05]} Rg8 {[%emt 0:06:29]} 30. Ne2 {[%emt 0:05:43]} Nfxd5 {[%emt 0:04:06]} 31. Bc4 {[%emt 0:00:15]} Ng6 {[%emt 0:01:45]} 32. Rxg6 {[%emt 0:01:09]} Qxg6 {[%emt 0:00:14]} 33. Qxd5 {[%emt 0:01:01]} Rgg7 {[%emt 0:01:42]} 34. Nxd4 {[%emt 0:02:53]} cxd4 {[%emt 0:00:10]} 35. Rg3 {[%emt 0:00:37]} Qe8 {[%emt 0:00:43]} 36. Rxg7 {[%emt 0:02:16]} Kxg7 {[%emt 0:00:09]} 37. Qxd4+ {[%emt 0:00:21]} Kh6 {[%emt 0:00:42]} 38. Qf6+ {[%emt 0:00:34]} 1-0

[Event "Mitropa Online Cup Women 2021"]
[Site "Hybrid"]
[Date "2021.05.04"]
[Round "7.2"]
[White "Thomas, Anysia"]
[Black "Rozman, Monika"]
[Result "1-0"]
[ECO "D12"]
[WhiteElo "2164"]
[BlackElo "2175"]
[Annotator "NA"]
[PlyCount "71"]
[EventDate "2021.05.04"]
[EventType "team-tourn"]
[EventCountry "NET"]
[SourceTitle "playchess.com"]
[Source "ChessBase"]
[SourceQuality "1"]
[WhiteTeam "France"]
[BlackTeam "Slovenia"]
[WhiteTeamCountry "FRA"]
[BlackTeamCountry "SLO"]
[TimeControl "40/5400+30:1800+30"]

1. d4 {[%emt 0:00:00]} d5 {[%emt 0:00:14]} 2. c4 {[%emt 0:00:12]} c6 {[%emt 0:00:05]} 3. Nf3 {[%emt 0:00:09]} Nf6 {[%emt 0:00:05]} 4. e3 {[%emt 0:00:08]} Bf5 {[%emt 0:00:14]} 5. Nc3 {[%emt 0:00:19]} e6 {[%emt 0:00:46]} 6. Nh4 {[%emt 0:00:42]} Bg6 {[%emt 0:00:46]} 7. Be2 {[%emt 0:00:17]} Be7 {[%emt 0:02:19]} 8. O-O {[%emt 0:07:48]} Nbd7 {[%emt 0:02:06]} 9. g3 {[%emt 0:00:38]} O-O {[%emt 0:03:09]} 10. Nxg6 {[%emt 0:00:28]} hxg6 {[%emt 0:00:32]} 11. b3 {[%emt 0:00:36]} Qa5 {[%emt 0:08:17]} 12. Qc2 {[%emt 0:09:02]} Rac8 {[%emt 0:16:00]} 13. Bd2 {[%emt 0:12:51]} Qd8 {[%emt 0:05:00]} 14. e4 {[%emt 0:07:35]} dxe4 {[%emt 0:03:32]} 15. Nxe4 {[%emt 0:01:25]} Nxe4 {[%emt 0:03:20]} 16. Qxe4 {[%emt 0:00:18]} Nf6 {[%emt 0:01:29]} 17. Qe3 {[%emt 0:01:27]} c5 {[%emt 0:04:40]} 18. Bc3 {[%emt 0:02:55]} b5 {[%emt 0:02:05]} 19. Rad1 {[%emt 0:08:39]} Qc7 {[%emt 0:02:57]} 20. Rfe1 {[%emt 0:23:30]} bxc4 {[%emt 0:05:47]} 21. Bxc4 {[%emt 0:01:48]} Rfe8 {[%emt 0:05:16]} 22. Qf3 {[%emt 0:03:12]} Red8 {[%emt 0:06:35]} 23. d5 {[%emt 0:06:36]} Qb7 {[%emt 0:06:53]} 24. Bxf6 {[%emt 0:04:01]} Bxf6 {[%emt 0:03:23]} 25. Qg4 {[%emt 0:04:08]} exd5 {[%emt 0:01:40]} 26. Rxd5 {[%emt 0:00:51]} Qb4 {[%emt 0:02:51]} 27. Red1 {[%emt 0:00:46]} Rf8 {[%emt 0:00:56]} 28. Rd7 {[%emt 0:00:16]} Rcd8 {[%emt 0:07:48]} 29. Bxf7+ {[%emt 0:01:00]} Rxf7 {[%emt 0:01:07]} 30. Rxd8+ {[%emt 0:00:06]} Bxd8 {[%emt 0:00:45]} 31. Rxd8+ {[%emt 0:00:08]} Rf8 {[%emt 0:00:02]} 32. Qe6+ {[%emt 0:00:32]} Kh7 {[%emt 0:00:01]} 33. Rxf8 {[%emt 0:00:17]} g5 {[%emt 0:00:02]} 34. Qf5+ {[%emt 0:00:19]} g6 {[%emt 0:00:06]} 35. Qf7+ {[%emt 0:00:09]} Kh6 {[%emt 0:00:01]} 36. Rh8# {[%emt 0:00:12]} 1-0

[Event "Mitropa Online Cup Women 2021"]
[Site "Hybrid"]
[Date "2021.05.04"]
[Round "7.3"]
[White "Trippold, Denise"]
[Black "Medic, Mirjana"]
[Result "1-0"]
[ECO "E14"]
[WhiteElo "2145"]
[BlackElo "2147"]
[Annotator "NA"]
[PlyCount "119"]
[EventDate "2021.05.04"]
[EventType "team-tourn"]
[EventCountry "NET"]
[SourceTitle "playchess.com"]
[Source "ChessBase"]
[SourceQuality "1"]
[WhiteTeam "Austria"]
[BlackTeam "Croatia"]
[WhiteTeamCountry "AUT"]
[BlackTeamCountry "CRO"]
[TimeControl "40/5400+30:1800+30"]

1. Nf3 {[%emt 0:00:00]} d5 {[%emt 0:00:10]} 2. c4 {[%emt 0:00:08]} e6 {[%emt 0:00:07]} 3. d4 {[%emt 0:00:14]} Nf6 {[%emt 0:00:15]} 4. e3 {[%emt 0:00:30]} b6 {[%emt 0:03:18]} 5. b3 {[%emt 0:03:24]} Bb7 {[%emt 0:00:17]} 6. Bb2 {[%emt 0:00:25]} Be7 {[%emt 0:03:02]} 7. Bd3 {[%emt 0:00:19]} O-O {[%emt 0:00:56]} 8. O-O {[%emt 0:00:36]} Nbd7 {[%emt 0:02:18]} 9. Nc3 {[%emt 0:03:39]} Ne4 {[%emt 0:05:00]} 10. cxd5 {[%emt 0:04:28]} exd5 {[%emt 0:06:13]} 11. Rc1 {[%emt 0:04:01]} c5 {[%emt 0:02:40]} 12. Qe2 {[%emt 0:03:31]} Ndf6 {[%emt 0:07:56]} 13. Rfd1 {[%emt 0:05:05]} Rc8 {[%emt 0:12:23]} 14. Bb1 {[%emt 0:07:38]} Qc7 {[%emt 0:06:25]} 15. Ne5 {[%emt 0:21:58]} Rfd8 {[%emt 0:04:28]} 16. Na4 {[%emt 0:04:58]} Qb8 {[%emt 0:04:07]} 17. f3 {[%emt 0:10:35]} Ng5 {[%emt 0:00:35]} 18. Bf5 {[%emt 0:00:10]} Ne6 {[%emt 0:00:24]} 19. g3 {[%emt 0:18:10]} Bd6 {[%emt 0:02:30]} 20. f4 {[%emt 0:00:48]} Rc7 {[%emt 0:02:43]} 21. Ng4 {[%emt 0:02:37]} Ne4 {[%emt 0:09:38]} 22. Bxe4 {[%emt 0:04:23]} dxe4 {[%emt 0:00:09]} 23. d5 {[%emt 0:00:03]} Nf8 {[%emt 0:01:40]} 24. Nc3 {[%emt 0:00:06]} f5 {[%emt 0:03:19]} 25. Ne5 {[%emt 0:01:39]} a6 {[%emt 0:00:46]} 26. a4 {[%emt 0:02:09]} Qc8 {[%emt 0:02:44]} 27. Nc4 {[%emt 0:00:12]} Re7 {[%emt 0:05:19]} 28. Nxb6 {[%emt 0:00:18]} Qc7 {[%emt 0:00:31]} 29. a5 {[%emt 0:00:33]} Nd7 {[%emt 0:01:50]} 30. Nxd7 {[%emt 0:01:01]} Rexd7 {[%emt 0:00:50]} 31. g4 {[%emt 0:00:19]} Rf7 {[%emt 0:01:52]} 32. Kh1 {[%emt 0:01:19]} Bc8 {[%emt 0:01:33]} 33. gxf5 {[%emt 0:00:20]} Bxf5 {[%emt 0:00:09]} 34. Rg1 {[%emt 0:00:38]} Qxa5 {[%emt 0:01:13]} 35. Qc4 {[%emt 0:00:21]} Qb4 {[%emt 0:01:20]} 36. Ra1 {[%emt 0:00:43]} a5 {[%emt 0:00:36]} 37. Ra4 {[%emt 0:00:14]} Qxc4 {[%emt 0:00:08]} 38. bxc4 {[%emt 0:00:26]} Bc7 {[%emt 0:01:03]} 39. Ra2 {[%emt 0:00:51]} h5 {[%emt 0:02:41]} 40. Nb5 {[%emt 0:00:00]} Bb6 {[%emt 0:00:00]} 41. Be5 {[%emt 0:11:13]} Bg4 {[%emt 0:02:45]} 42. Rg3 {[%emt 0:05:42]} Ra8 {[%emt 0:01:11]} 43. Nd6 {[%emt 0:01:34]} Rfa7 {[%emt 0:02:01]} 44. Nxe4 {[%emt 0:00:47]} a4 {[%emt 0:00:23]} 45. Nf2 {[%emt 0:02:52]} Bc8 {[%emt 0:01:05]} 46. e4 {[%emt 0:02:10]} a3 {[%emt 0:01:03]} 47. Rg6 {[%emt 0:03:18]} Bd8 {[%emt 0:00:46]} 48. f5 {[%emt 0:01:08]} Kh7 {[%emt 0:01:18]} 49. Nd3 {[%emt 0:00:27]} Ba6 {[%emt 0:00:20]} 50. Rxa3 {[%emt 0:02:45]} Bxc4 {[%emt 0:00:12]} 51. Rxa7 {[%emt 0:00:03]} Rxa7 {[%emt 0:00:06]} 52. Nxc5 {[%emt 0:00:20]} Be2 {[%emt 0:01:39]} 53. Kg2 {[%emt 0:01:30]} Bd1 {[%emt 0:02:48]} 54. Ne6 {[%emt 0:02:43]} Ra2+ {[%emt 0:01:32]} 55. Kg1 {[%emt 0:01:35]} Bb6+ {[%emt 0:00:13]} 56. Bd4 {[%emt 0:00:04]} Bxd4+ {[%emt 0:00:23]} 57. Nxd4 {[%emt 0:00:02]} Ra4 {[%emt 0:00:17]} 58. Ne6 {[%emt 0:00:07]} Bc2 {[%emt 0:01:05]} 59. d6 {[%emt 0:00:36]} Ra1+ {[%emt 0:01:57]} 60. Kf2 {[%emt 0:00:04]} 1-0

[Event "Mitropa Online Cup Women 2021"]
[Site "Hybrid"]
[Date "2021.05.04"]
[Round "7.3"]
[White "Vujnovic, Patricija"]
[Black "Froewis, Annika"]
[Result "1-0"]
[ECO "D35"]
[WhiteElo "2129"]
[BlackElo "2143"]
[Annotator "NA"]
[PlyCount "61"]
[EventDate "2021.05.04"]
[EventType "team-tourn"]
[EventCountry "NET"]
[SourceTitle "playchess.com"]
[Source "ChessBase"]
[SourceQuality "1"]
[WhiteTeam "Croatia"]
[BlackTeam "Austria"]
[WhiteTeamCountry "CRO"]
[BlackTeamCountry "AUT"]
[TimeControl "40/5400+30:1800+30"]

1. d4 {[%emt 0:00:00]} d5 {[%emt 0:00:07]} 2. c4 {[%emt 0:00:06]} e6 {[%emt 0:00:06]} 3. Nc3 {[%emt 0:00:06]} Nf6 {[%emt 0:00:05]} 4. cxd5 {[%emt 0:00:09]} exd5 {[%emt 0:00:03]} 5. Bg5 {[%emt 0:00:07]} Be7 {[%emt 0:00:12]} 6. e3 {[%emt 0:00:10]} c6 {[%emt 0:00:27]} 7. Bd3 {[%emt 0:00:18]} Nbd7 {[%emt 0:00:15]} 8. Nge2 {[%emt 0:00:27]} h6 {[%emt 0:00:18]} 9. Bh4 {[%emt 0:01:41]} O-O {[%emt 0:01:02]} 10. f3 {[%emt 0:01:57]} c5 {[%emt 0:06:29]} 11. O-O {[%emt 0:04:34]} a6 {[%emt 0:01:38]} 12. dxc5 {[%emt 0:01:01]} Nxc5 {[%emt 0:05:14]} 13. Bf2 {[%emt 0:01:32]} Nxd3 {[%emt 0:07:36]} 14. Qxd3 {[%emt 0:00:06]} Be6 {[%emt 0:01:47]} 15. Rfd1 {[%emt 0:02:40]} Qd7 {[%emt 0:01:31]} 16. Nf4 {[%emt 0:01:42]} Rfd8 {[%emt 0:01:10]} 17. Rd2 {[%emt 0:03:47]} Rac8 {[%emt 0:02:57]} 18. a3 {[%emt 0:09:50]} Rc6 {[%emt 0:16:23]} 19. Qe2 {[%emt 0:08:13]} Bd6 {[%emt 0:07:54]} 20. Rad1 {[%emt 0:04:32]} Bxf4 {[%emt 0:09:39]} 21. exf4 {[%emt 0:00:32]} Qc7 {[%emt 0:00:31]} 22. Rd4 {[%emt 0:06:40]} Nh5 {[%emt 0:14:55]} 23. f5 {[%emt 0:08:19]} Rxc3 {[%emt 0:07:09]} 24. bxc3 {[%emt 0:02:00]} Bd7 {[%emt 0:01:06]} 25. Qd2 {[%emt 0:03:06]} Nf6 {[%emt 0:02:51]} 26. Bh4 {[%emt 0:01:22]} Bxf5 {[%emt 0:04:54]} 27. Bxf6 {[%emt 0:01:21]} gxf6 {[%emt 0:00:11]} 28. Qxh6 {[%emt 0:00:38]} Qb6 {[%emt 0:01:09]} 29. Kh1 {[%emt 0:01:40]} Re8 {[%emt 0:02:45]} 30. Rh4 {[%emt 0:02:08]} Qe3 {[%emt 0:00:07]} 31. Qh8# {[%emt 0:00:11]} 1-0

[Event "Mitropa Online Cup Women 2021"]
[Site "Hybrid"]
[Date "2021.05.04"]
[Round "7.3"]
[White "Mayrhuber, Nikola"]
[Black "Spiranec, Noemi"]
[Result "1-0"]
[ECO "D46"]
[WhiteElo "2040"]
[BlackElo "2098"]
[Annotator "NA"]
[PlyCount "69"]
[EventDate "2021.05.04"]
[EventType "team-tourn"]
[EventCountry "NET"]
[SourceTitle "playchess.com"]
[Source "ChessBase"]
[SourceQuality "1"]
[WhiteTeam "AUT"]
[BlackTeam "CRO"]
[BlackTeamCountry "CRO"]
[TimeControl "40/5400+30:1800+30"]

1. d4 {[%emt 0:00:00]} Nf6 {[%emt 0:00:11]} 2. c4 {[%emt 0:00:07]} e6 {[%emt 0:00:14]} 3. Nc3 {[%emt 0:00:09]} Bb4 {[%emt 0:00:17]} 4. Bd2 {[%emt 0:00:25]} O-O {[%emt 0:00:22]} 5. Nf3 {[%emt 0:00:16]} d5 {[%emt 0:00:16]} 6. e3 {[%emt 0:00:24]} Nbd7 {[%emt 0:01:20]} 7. Bd3 {[%emt 0:05:17]} c6 {[%emt 0:00:24]} 8. O-O {[%emt 0:02:34]} Qe7 {[%emt 0:00:40]} 9. a3 {[%emt 0:02:11]} Bd6 {[%emt 0:00:20]} 10. e4 {[%emt 0:13:01]} dxe4 {[%emt 0:08:08]} 11. Nxe4 {[%emt 0:00:22]} Nxe4 {[%emt 0:00:05]} 12. Bxe4 {[%emt 0:00:08]} f5 {[%emt 0:05:37]} 13. Bc2 {[%emt 0:04:46]} c5 {[%emt 0:06:31]} 14. Re1 {[%emt 0:02:36]} cxd4 {[%emt 0:04:50]} 15. Nxd4 {[%emt 0:00:43]} Bxh2+ {[%emt 0:05:31]} 16. Kxh2 {[%emt 0:09:44]} Qh4+ {[%emt 0:00:11]} 17. Kg1 {[%emt 0:00:06]} Qxd4 {[%emt 0:00:09]} 18. Bb4 {[%emt 0:13:00]} Qxd1 {[%emt 0:26:08]} 19. Raxd1 {[%emt 0:00:06]} Rf6 {[%emt 0:00:14]} 20. Bc3 {[%emt 0:00:57]} Rg6 {[%emt 0:04:47]} 21. Bxf5 {[%emt 0:04:32]} exf5 {[%emt 0:05:38]} 22. Re8+ {[%emt 0:00:14]} Kf7 {[%emt 0:00:05]} 23. Rde1 {[%emt 0:00:26]} Rf6 {[%emt 0:00:54]} 24. R1e7+ {[%emt 0:06:29]} Kg6 {[%emt 0:00:05]} 25. Rg8 {[%emt 0:10:53]} Rf7 {[%emt 0:01:34]} 26. Rxg7+ {[%emt 0:00:11]} Rxg7 {[%emt 0:00:21]} 27. Rxg7+ {[%emt 0:00:08]} Kh6 {[%emt 0:00:49]} 28. Rg8 {[%emt 0:02:49]} Nb6 {[%emt 0:11:12]} 29. Kh2 {[%emt 0:06:08]} Be6 {[%emt 0:05:11]} 30. Bd2+ {[%emt 0:00:16]} Kh5 {[%emt 0:00:05]} 31. Rg5+ {[%emt 0:00:06]} Kh6 {[%emt 0:00:18]} 32. g4 {[%emt 0:10:10]} fxg4 {[%emt 0:02:50]} 33. Rxg4+ {[%emt 0:00:05]} Kh5 {[%emt 0:00:10]} 34. Rg5+ {[%emt 0:00:05]} Kh4 {[%emt 0:00:47]} 35. f4 {[%emt 0:00:55]} 1-0